{"text_format":"3","workbook":"xlsx","n_sheets":2,"sheets":["Inventering av utrustning","Inställningar"],"not_rendered":{"defined_names":4},"read":"whole","date_system":"1900"}

{"sheet":"Inventering av utrustning","index":0,"n_rows":35,"n_cols":6,"rows_kept":35,"merged":[[0,1,2,2],[0,4,0,5]]}
[]
[{"$nulls":4},"Markera artiklar som är äldre än:"]
[{"$nulls":4},4]
[]
[null,"UTRUSTNINGS-ID","ARTIKELNAMN","TILLDELAT","UTFÄRDANDEDATUM","ARTIKELNS ÅLDER"]
[null,"ARTIKEL0001","stol","Anställd 1",{"$f":"TODAY()-25","v":"2012-11-05"},{"$f":"IF(tabellInventeringAvUtrustning[[#This Row],[UTFÄRDANDEDATUM]]<>\"\",TODAY()-tabellInventeringAvUtrustning[[#This Row],[UTFÄRDANDEDATUM]],\"\")","v":{"v":25,"d":"25 Dagar"}}]
[null,"ARTIKEL0002","laserskrivare","Anställd 2",{"$f":"TODAY()-479","v":"2011-08-09"},{"$f":"IF(tabellInventeringAvUtrustning[[#This Row],[UTFÄRDANDEDATUM]]<>\"\",TODAY()-tabellInventeringAvUtrustning[[#This Row],[UTFÄRDANDEDATUM]],\"\")","v":{"v":479,"d":"479 Dagar"}}]
[null,"ARTIKEL0003","skanner","Anställd 3",{"$f":"TODAY()-177","v":"2012-06-06"},{"$f":"IF(tabellInventeringAvUtrustning[[#This Row],[UTFÄRDANDEDATUM]]<>\"\",TODAY()-tabellInventeringAvUtrustning[[#This Row],[UTFÄRDANDEDATUM]],\"\")","v":{"v":177,"d":"177 Dagar"}}]
[null,"ARTIKEL0004","laserskrivare","Anställd 7",{"$f":"TODAY()-18","v":"2012-11-12"},{"$f":"IF(tabellInventeringAvUtrustning[[#This Row],[UTFÄRDANDEDATUM]]<>\"\",TODAY()-tabellInventeringAvUtrustning[[#This Row],[UTFÄRDANDEDATUM]],\"\")","v":{"v":18,"d":"18 Dagar"}}]
[null,"ARTIKEL0005","kaffebryggare","Anställd 20",{"$f":"TODAY()-227","v":"2012-04-17"},{"$f":"IF(tabellInventeringAvUtrustning[[#This Row],[UTFÄRDANDEDATUM]]<>\"\",TODAY()-tabellInventeringAvUtrustning[[#This Row],[UTFÄRDANDEDATUM]],\"\")","v":{"v":227,"d":"227 Dagar"}}]
[null,"ARTIKEL0006","skanner","Anställd 14",{"$f":"TODAY()-50","v":"2012-10-11"},{"$f":"IF(tabellInventeringAvUtrustning[[#This Row],[UTFÄRDANDEDATUM]]<>\"\",TODAY()-tabellInventeringAvUtrustning[[#This Row],[UTFÄRDANDEDATUM]],\"\")","v":{"v":50,"d":"50 Dagar"}}]
[null,"ARTIKEL0007","bord","Anställd 4",{"$f":"TODAY()-120","v":"2012-08-02"},{"$f":"IF(tabellInventeringAvUtrustning[[#This Row],[UTFÄRDANDEDATUM]]<>\"\",TODAY()-tabellInventeringAvUtrustning[[#This Row],[UTFÄRDANDEDATUM]],\"\")","v":{"v":120,"d":"120 Dagar"}}]
[null,"ARTIKEL0008","kopieringsapparat","Anställd 12",{"$f":"TODAY()-499","v":"2011-07-20"},{"$f":"IF(tabellInventeringAvUtrustning[[#This Row],[UTFÄRDANDEDATUM]]<>\"\",TODAY()-tabellInventeringAvUtrustning[[#This Row],[UTFÄRDANDEDATUM]],\"\")","v":{"v":499,"d":"499 Dagar"}}]
[null,"ARTIKEL0009","extraskärm","Anställd 8",{"$f":"TODAY()-30","v":"2012-10-31"},{"$f":"IF(tabellInventeringAvUtrustning[[#This Row],[UTFÄRDANDEDATUM]]<>\"\",TODAY()-tabellInventeringAvUtrustning[[#This Row],[UTFÄRDANDEDATUM]],\"\")","v":{"v":30,"d":"30 Dagar"}}]
[null,"ARTIKEL0010","whiteboard","Anställd 19",{"$f":"TODAY()-50","v":"2012-10-11"},{"$f":"IF(tabellInventeringAvUtrustning[[#This Row],[UTFÄRDANDEDATUM]]<>\"\",TODAY()-tabellInventeringAvUtrustning[[#This Row],[UTFÄRDANDEDATUM]],\"\")","v":{"v":50,"d":"50 Dagar"}}]
[null,"ARTIKEL0011","kopieringsapparat","Anställd 12",{"$f":"TODAY()-450","v":"2011-09-07"},{"$f":"IF(tabellInventeringAvUtrustning[[#This Row],[UTFÄRDANDEDATUM]]<>\"\",TODAY()-tabellInventeringAvUtrustning[[#This Row],[UTFÄRDANDEDATUM]],\"\")","v":{"v":450,"d":"450 Dagar"}}]
[null,"ARTIKEL0012","skrivpapper","Anställd 18",{"$f":"TODAY()-420","v":"2011-10-07"},{"$f":"IF(tabellInventeringAvUtrustning[[#This Row],[UTFÄRDANDEDATUM]]<>\"\",TODAY()-tabellInventeringAvUtrustning[[#This Row],[UTFÄRDANDEDATUM]],\"\")","v":{"v":420,"d":"420 Dagar"}}]
[null,"ARTIKEL0013","extraskärm","Anställd 8",{"$f":"TODAY()-250","v":"2012-03-25"},{"$f":"IF(tabellInventeringAvUtrustning[[#This Row],[UTFÄRDANDEDATUM]]<>\"\",TODAY()-tabellInventeringAvUtrustning[[#This Row],[UTFÄRDANDEDATUM]],\"\")","v":{"v":250,"d":"250 Dagar"}}]
[null,"ARTIKEL0014","kaffebryggare","Anställd 9",{"$f":"TODAY()-45","v":"2012-10-16"},{"$f":"IF(tabellInventeringAvUtrustning[[#This Row],[UTFÄRDANDEDATUM]]<>\"\",TODAY()-tabellInventeringAvUtrustning[[#This Row],[UTFÄRDANDEDATUM]],\"\")","v":{"v":45,"d":"45 Dagar"}}]
[null,"ARTIKEL0015","skrivpapper","Anställd 13",{"$f":"TODAY()-502","v":"2011-07-17"},{"$f":"IF(tabellInventeringAvUtrustning[[#This Row],[UTFÄRDANDEDATUM]]<>\"\",TODAY()-tabellInventeringAvUtrustning[[#This Row],[UTFÄRDANDEDATUM]],\"\")","v":{"v":502,"d":"502 Dagar"}}]
[null,"ARTIKEL0016","skanner","Anställd 1",{"$f":"TODAY()-350","v":"2011-12-16"},{"$f":"IF(tabellInventeringAvUtrustning[[#This Row],[UTFÄRDANDEDATUM]]<>\"\",TODAY()-tabellInventeringAvUtrustning[[#This Row],[UTFÄRDANDEDATUM]],\"\")","v":{"v":350,"d":"350 Dagar"}}]
[null,"ARTIKEL0017","kopieringsapparat","Anställd 19",{"$f":"TODAY()-125","v":"2012-07-28"},{"$f":"IF(tabellInventeringAvUtrustning[[#This Row],[UTFÄRDANDEDATUM]]<>\"\",TODAY()-tabellInventeringAvUtrustning[[#This Row],[UTFÄRDANDEDATUM]],\"\")","v":{"v":125,"d":"125 Dagar"}}]
[null,"ARTIKEL0018","whiteboard","Anställd 15",{"$f":"TODAY()-90","v":"2012-09-01"},{"$f":"IF(tabellInventeringAvUtrustning[[#This Row],[UTFÄRDANDEDATUM]]<>\"\",TODAY()-tabellInventeringAvUtrustning[[#This Row],[UTFÄRDANDEDATUM]],\"\")","v":{"v":90,"d":"90 Dagar"}}]
[null,"ARTIKEL0019","stol","Anställd 16",{"$f":"TODAY()-730","v":"2010-12-01"},{"$f":"IF(tabellInventeringAvUtrustning[[#This Row],[UTFÄRDANDEDATUM]]<>\"\",TODAY()-tabellInventeringAvUtrustning[[#This Row],[UTFÄRDANDEDATUM]],\"\")","v":{"v":730,"d":"730 Dagar"}}]
[null,"ARTIKEL0020","dammtrasa (1 paket)","Anställd 3",{"$f":"TODAY()-540","v":"2011-06-09"},{"$f":"IF(tabellInventeringAvUtrustning[[#This Row],[UTFÄRDANDEDATUM]]<>\"\",TODAY()-tabellInventeringAvUtrustning[[#This Row],[UTFÄRDANDEDATUM]],\"\")","v":{"v":540,"d":"540 Dagar"}}]
[null,"ARTIKEL0021","laserskrivare","Anställd 7",{"$f":"TODAY()-18","v":"2012-11-12"},{"$f":"IF(tabellInventeringAvUtrustning[[#This Row],[UTFÄRDANDEDATUM]]<>\"\",TODAY()-tabellInventeringAvUtrustning[[#This Row],[UTFÄRDANDEDATUM]],\"\")","v":{"v":18,"d":"18 Dagar"}}]
[null,"ARTIKEL0022","bärbar dator","Anställd 8",{"$f":"TODAY()-283","v":"2012-02-21"},{"$f":"IF(tabellInventeringAvUtrustning[[#This Row],[UTFÄRDANDEDATUM]]<>\"\",TODAY()-tabellInventeringAvUtrustning[[#This Row],[UTFÄRDANDEDATUM]],\"\")","v":{"v":283,"d":"283 Dagar"}}]
[null,"ARTIKEL0023","skrivpapper","Anställd 9",{"$f":"TODAY()-479","v":"2011-08-09"},{"$f":"IF(tabellInventeringAvUtrustning[[#This Row],[UTFÄRDANDEDATUM]]<>\"\",TODAY()-tabellInventeringAvUtrustning[[#This Row],[UTFÄRDANDEDATUM]],\"\")","v":{"v":479,"d":"479 Dagar"}}]
[null,"ARTIKEL0024","laserskrivare","Anställd 19",{"$f":"TODAY()-355","v":"2011-12-11"},{"$f":"IF(tabellInventeringAvUtrustning[[#This Row],[UTFÄRDANDEDATUM]]<>\"\",TODAY()-tabellInventeringAvUtrustning[[#This Row],[UTFÄRDANDEDATUM]],\"\")","v":{"v":355,"d":"355 Dagar"}}]
[null,"ARTIKEL0025","bord","Anställd 7",{"$f":"TODAY()-28","v":"2012-11-02"},{"$f":"IF(tabellInventeringAvUtrustning[[#This Row],[UTFÄRDANDEDATUM]]<>\"\",TODAY()-tabellInventeringAvUtrustning[[#This Row],[UTFÄRDANDEDATUM]],\"\")","v":{"v":28,"d":"28 Dagar"}}]
[null,"ARTIKEL0026","whiteboard","Anställd 8",{"$f":"TODAY()-28","v":"2012-11-02"},{"$f":"IF(tabellInventeringAvUtrustning[[#This Row],[UTFÄRDANDEDATUM]]<>\"\",TODAY()-tabellInventeringAvUtrustning[[#This Row],[UTFÄRDANDEDATUM]],\"\")","v":{"v":28,"d":"28 Dagar"}}]
[null,"ARTIKEL0027","bärbar dator","Anställd 19",{"$f":"TODAY()-736","v":"2010-11-25"},{"$f":"IF(tabellInventeringAvUtrustning[[#This Row],[UTFÄRDANDEDATUM]]<>\"\",TODAY()-tabellInventeringAvUtrustning[[#This Row],[UTFÄRDANDEDATUM]],\"\")","v":{"v":736,"d":"736 Dagar"}}]
[null,"ARTIKEL0028","bord","Anställd 12",{"$f":"TODAY()-68","v":"2012-09-23"},{"$f":"IF(tabellInventeringAvUtrustning[[#This Row],[UTFÄRDANDEDATUM]]<>\"\",TODAY()-tabellInventeringAvUtrustning[[#This Row],[UTFÄRDANDEDATUM]],\"\")","v":{"v":68,"d":"68 Dagar"}}]
[null,"ARTIKEL0029","skanner","Anställd 14",{"$f":"TODAY()-67","v":"2012-09-24"},{"$f":"IF(tabellInventeringAvUtrustning[[#This Row],[UTFÄRDANDEDATUM]]<>\"\",TODAY()-tabellInventeringAvUtrustning[[#This Row],[UTFÄRDANDEDATUM]],\"\")","v":{"v":67,"d":"67 Dagar"}}]
[null,"ARTIKEL0030","kaffebryggare","Anställd 3",{"$f":"TODAY()-149","v":"2012-07-04"},{"$f":"IF(tabellInventeringAvUtrustning[[#This Row],[UTFÄRDANDEDATUM]]<>\"\",TODAY()-tabellInventeringAvUtrustning[[#This Row],[UTFÄRDANDEDATUM]],\"\")","v":{"v":149,"d":"149 Dagar"}}]

{"sheet":"Inställningar","index":1,"n_rows":23,"n_cols":4,"rows_kept":23}
[]
[]
[null,"ANSTÄLLDA",null,"ARTIKLAR"]
[null,"Anställd 1",null,"stol"]
[null,"Anställd 2",null,"kaffebryggare"]
[null,"Anställd 3",null,"kopieringsapparat"]
[null,"Anställd 4",null,"stationär dator"]
[null,"Anställd 5",null,"dammtrasa (1 paket)"]
[null,"Anställd 6",null,"extraskärm"]
[null,"Anställd 7",null,"bläckstråleskrivare"]
[null,"Anställd 8",null,"bärbar dator"]
[null,"Anställd 9",null,"laserskrivare"]
[null,"Anställd 10",null,"understrykningspennor (3 paket)"]
[null,"Anställd 11",null,"skanner"]
[null,"Anställd 12",null,"skrivpapper"]
[null,"Anställd 13",null,"bord"]
[null,"Anställd 14",null,"USB-enhet"]
[null,"Anställd 15",null,"whiteboard"]
[null,"Anställd 16"]
[null,"Anställd 17"]
[null,"Anställd 18"]
[null,"Anställd 19"]
[null,"Anställd 20"]